Cogmind - Beta 16 @@@ ROGUE MODE // 2026.01.06 @ 20:38:08 // Winter2019/RPGLIKE Player: Gallgagger Result: Destroyed by Y-54 Guardian with Gatling Laser Performance ------------- Evolutions (4) 2000 Regions Visited (14) 2800 Robots Destroyed (580) 2900 Value Destroyed (22617) 22617 Prototype IDs (215) 4300 Alien Tech Used (0) 0 Bonus (15642) 15642 TOTAL SCORE: 50259 Bonus ------- Triggered High Security 1000 High Alert Combat Kills 11363 Follower Combat Kills 14 Met Data Miner 300 Used Data Conduit 3000 Friendly Fire -35 Cogmind --------- Core Integrity 0/1750 Matter 230/350 Energy 200/200 System Corruption 5% Temperature Cool (33) Movement Flying (17) Location -6/Factory Parts ------- > --- POWER (2) -------- Micro Nuclear Core Light Angular Momentum Engine > --- PROPULSION (6) --- Surge Thruster Surge Thruster Improved VTOL Module Nuclear Pulse Thruster Advanced Surge Thruster Advanced Surge Thruster > --- UTILITY (8) ------ Gravity Neutralizer Seismic Detector Improved Salvage Targeting Computer Armor Integrity Analyzer Kinecellerator Weapon Cycler Weapon Cycler Graphene Brace > --- WEAPON (4) ------- Enhanced Autogun Enhanced Autogun Enhanced Autogun Enhanced Autogun > --- INVENTORY (3) ---- Surge Thruster Advanced Surge Thruster Stasis Trap (100%) Peak State ------------ > --- POWER ------------ Micro Nuclear Core Light Angular Momentum Engine > --- PROPULSION ------- Surge Thruster Surge Thruster Improved VTOL Module Nuclear Pulse Thruster Advanced Surge Thruster Advanced Surge Thruster > --- UTILITY ---------- Gravity Neutralizer Seismic Detector Improved Salvage Targeting Computer Armor Integrity Analyzer Kinecellerator Weapon Cycler Weapon Cycler Graphene Brace > --- WEAPON ----------- Enhanced Autogun Enhanced Autogun Enhanced Autogun Enhanced Autogun > --- INVENTORY -------- Surge Thruster Advanced Surge Thruster Stasis Trap [Rating: 89] Favorites ----------- Power Light Angular Momentum Engine Engine Light Angular Momentum Engine Power Core Micro Nuclear Core Propulsion VTOL Module Wheel Compact Wheel Flight Unit VTOL Module Utility Seismic Detector Device Seismic Detector Processor Improved Signal Interpreter Hackware Hacking Suite Protection Improved Light Armor Plating Weapon Enhanced Autogun Energy Gun Small Laser Ballistic Gun Enhanced Autogun Launcher Rocket Launcher Build | -11 -10 -10 -9 -9 -8 -8 -7 -7 -7 -7 -6 -6 -6 -6 ------- Run | Yrd Mat Min Mat Min Mat Sto Fac Low Low Dat Pro Fac Was Fac Slots Evolved 16 | 3 3 1 5 . 2 . 1 . . . 1 . . . Power 1 | . . . 1 . . . . . . . . . . . Propulsion 5 | 1 1 . 2 . . . . . . . 1 . . . Utility 7 | 1 1 1 1 . 2 . 1 . . . . . . . Weapon 3 | 1 1 . 1 . . . . . . . . . . . Parts Attached 82 | 7 9 3 12 . 21 6 13 2 1 . 1 1 . 6 Power 7 | 1 . 1 2 . 1 1 . . . . . 1 . . Engine 6 | 1 . 1 2 . 1 1 . . . . . . . . Core 1 | . . . . . . . . . . . . 1 . . Reactor . | . . . . . . . . . . . . . . . Propulsion 29 | 2 4 . 6 . 2 3 5 . . . 1 . . 6 Treads . | . . . . . . . . . . . . . . . Leg . | . . . . . . . . . . . . . . . Wheel 2 | 2 . . . . . . . . . . . . . . Hover . | . . . . . . . . . . . . . . . Flight 27 | . 4 . 6 . 2 3 5 . . . 1 . . 6 Utility 27 | 2 2 2 1 . 7 2 8 2 1 . . . . . Device 12 | 2 . 1 . . 2 2 3 1 1 . . . . . Storage . | . . . . . . . . . . . . . . . Processor 8 | . 1 . . . 3 . 3 1 . . . . . . Hackware 2 | . . . . . 1 . 1 . . . . . . . Protection 5 | . 1 1 1 . 1 . 1 . . . . . . . Artifact . | . . . . . . . . . . . . . . . Weapon 19 | 2 3 . 3 . 11 . . . . . . . . . Energy Gun 2 | 1 . . 1 . . . . . . . . . . . Energy Cannon . | . . . . . . . . . . . . . . . Ballistic Gun 16 | 1 3 . 1 . 11 . . . . . . . . . Ballistic Cannon . | . . . . . . . . . . . . . . . Launcher 1 | . . . 1 . . . . . . . . . . . Special Weapon . | . . . . . . . . . . . . . . . Impact Weapon . | . . . . . . . . . . . . . . . Slashing Weapon . | . . . . . . . . . . . . . . . Piercing Weapon . | . . . . . . . . . . . . . . . Special Melee Weapon . | . . . . . . . . . . . . . . . Unidentified Prototypes 8 | . . . 3 . 2 2 . . 1 . . . . . Parts Lost 1 | . . . . . . . 1 . . . . . . . Power . | . . . . . . . . . . . . . . . Propulsion . | . . . . . . . . . . . . . . . Utility 1 | . . . . . . . 1 . . . . . . . Weapon . | . . . . . . . . . . . . . . . Highest Loss Streak 1 | . . . . . . . 1 . . . . . . . To Critical Strikes . | . . . . . . . . . . . . . . . Average Backups . | . 1 1 . . . . . 1 1 1 . . . . Power . | . . . . . . . . . . . . . . . Propulsion . | . . . . . . . . . . . . . . . Utility . | . . 1 . . . . . 1 1 1 . . . . Weapon . | . . . . . . . . . . . . . . . Tool/Special . | . . . . . . . . . . . . . . . Unused Backups 1 | . 1 . . . . . . . . . . . . . Power 1 | . 1 . . . . . . . . . . . . . Propulsion . | . . . . . . . . . . . . . . . Utility . | . . . . . . . . . . . . . . . Weapon . | . . . . . . . . . . . . . . . Tool/Special . | . . . . . . . . . . . . . . . Average Slot Usage (%) 96 | . 99 100 94 93 92 93 96 100 100 100 100 100 100 100 Engine 10 | . 12 9 12 12 11 11 10 10 10 10 10 10 5 5 Flight 27 | . 26 27 29 31 27 27 26 26 26 26 29 30 30 30 Device 17 | . 25 17 12 12 11 11 19 25 26 26 25 30 30 30 Processor 9 | . 2 9 6 6 9 11 12 15 15 15 14 10 10 10 Hackware 1 | . . . . . 2 5 . . . . . . . . Protection 5 | . . 9 12 12 7 5 3 . . . . . . . Ballistic Gun 20 | . 24 27 19 18 19 21 21 21 21 21 20 20 20 20 Peak Build Rating 89 | 9 16 23 39 36 57 66 74 74 75 72 80 81 81 89 Average Rating 51 | 4 11 20 33 36 50 60 69 72 72 72 76 80 81 83 On Entrance 51 | . 9 15 23 36 36 53 66 74 72 72 72 80 81 81 Avg Prop Armor Cover (%) 1 | . . . 1 . 4 . . . . . . . . 3 Naked Turns . | . . . . . . . . . . . . . . . Heaviest Build 51 | 10 20 22 39 35 44 47 51 34 34 34 34 35 35 35 Greatest Support 53 | 31 31 22 39 39 46 52 53 46 34 34 52 40 43 46 Greatest Overweight (x) 2 | . 1 . . . 2 . . . . . . . . . Average Overweight (x) . | . . . . . . . . . . . . . . . Largest Inventory Capacity 3 | 1 1 1 1 1 2 2 3 3 3 3 3 3 3 3 Average Capacity 1 | 1 1 1 1 1 1 2 2 3 3 3 3 3 3 3 Most Carried 3 | 1 1 1 1 1 2 2 3 3 3 3 3 3 3 3 Average Carried 1 | . 1 1 . . 1 1 2 3 3 2 2 3 2 2 Final Capacity 3 | 1 1 1 1 1 2 2 3 3 3 3 3 3 3 3 Final Carried 3 | 1 1 1 1 1 2 2 3 3 3 3 3 3 3 3 Class Distribution -------------------- 45% | Sprinter 30% | Scavenger-Sprinter 18% | Gunner 4% | Mutant Dominant Class ---------------- Mutant | -10/Materials Gunner | -10/Mines Sprinter | -9/Materials Sprinter | -9/Mines Sprinter | -8/Materials Sprinter | -8/Storage Scavenger-Sprinter | -7/Factory Scavenger-Sprinter | -7/Lower Caves Scavenger-Sprinter | -7/Lower Caves Scavenger-Sprinter | -7/Data Miner Scavenger-Sprinter | -6/Proximity Caves Scavenger-Sprinter | -6/Factory Scavenger-Sprinter | -6/Waste Scavenger-Sprinter | -6/Factory Resources | -11 -10 -10 -9 -9 -8 -8 -7 -7 -7 -7 -6 -6 -6 -6 ----------- Run | Yrd Mat Min Mat Min Mat Sto Fac Low Low Dat Pro Fac Was Fac Matter Collected 17521 | 269 440 290 1581 281 2206 2990 5303 663 180 276 793 96 . 2153 Remotely . | . . . . . . . . . . . . . . . Salvage Created 24422 | 99 751 328 2230 326 2591 4209 7636 854 457 . 1218 224 . 3499 Parts 1373 | 7 54 16 141 45 182 226 365 57 15 17 73 16 . 159 Haulers Intercepted 27 | . . . 6 . 6 4 6 . 1 . . 1 . 3 Recyclers Shooed 3 | . 1 . . . . . . . . . . . . 2 Parts Field Recycled . | . . . . . . . . . . . . . . . Retrieved Matter . | . . . . . . . . . . . . . . . Parts Self-Destructed 137 | . . . . . . . . 49 15 . 73 . . . Prevented . | . . . . . . . . . . . . . . . Parts Restored . | . . . . . . . . . . . . . . . Kills | -11 -10 -10 -9 -9 -8 -8 -7 -7 -7 -7 -6 -6 -6 -6 ------- Run | Yrd Mat Min Mat Min Mat Sto Fac Low Low Dat Pro Fac Was Fac Combat Hostiles Destroyed 520 | . 26 10 60 18 58 92 144 22 5 4 21 3 . 57 Guns 520 | . 26 10 60 18 58 92 144 22 5 4 21 3 . 57 Classes Destroyed 23 | 2 2 2 6 1 2 2 2 1 . . 1 . . 2 Worker 11 | . . . 2 . 2 5 1 . . . . . . 1 Builder 7 | . . . 3 4 . . . . . . . . . . Tunneler 5 | 1 . . 1 1 . . 2 . . . . . . . Hauler 27 | . . . 6 . 6 4 6 . 1 . . 1 . 3 Recycler 3 | 1 . . 1 . . . 1 . . . . . . . Mechanic 4 | . . . . . . 1 2 . . . . . . 1 Operator 2 | . . . 1 . 1 . . . . . . . . . Drone 5 | . . . . . . . . . . . . . . 5 Watcher 14 | . . . 4 . 5 2 1 . . . . . . 2 Swarmer 72 | . 6 . 7 16 8 9 6 10 . . 6 . . 4 Cutter 11 | . . . . . . . 4 . . . . . . 7 Grunt 255 | . 20 8 41 1 33 33 72 6 5 . 11 1 . 24 Brawler 13 | . . . . 1 1 6 4 . . . . . . 1 Duelist 20 | . . . 2 . . 1 15 . . . . . . 2 Protector 13 | . . . . . . 3 9 . . . . . . 1 Sentry 75 | . . 1 10 . 10 39 6 2 . . 2 . . 5 Demolisher 2 | . . . . . . . . . . . . . . 2 Hunter 22 | . . . . . 5 1 14 . . . . 2 . . Programmer 19 | . . . . . . . 13 . . . 1 . . 5 Heavy 2 | . . . . . 1 . 1 . . . . . . . Behemoth 2 | . . . . . . . . . . . 1 . . 1 Enhanced Grunt 4 | . . . . . . . . . . 4 . . . . Assembled 1 | . . 1 . . . . . . . . . . . . Thug 2 | . . . . . . . . 2 . . . . . . Butcher 1 | . . . . . . . . 1 . . . . . . Mutant 1 | . . . . . . . . 1 . . . . . . Best Kill Streak 46 | 2 5 4 12 8 13 25 46 14 6 2 7 4 . 24 Combat Bots Only 44 | . 5 4 10 8 11 22 44 14 5 2 7 3 . 22 Max Kills in Single Turn 3 | 1 2 1 3 2 2 2 2 2 1 1 2 1 . 2 Gunslinging 2 | . 1 . 2 1 1 1 1 1 . . 1 . . 1 Exploded . | . . . . . . . . . . . . . . . Melee . | . . . . . . . . . . . . . . . Uniques/NPCs Destroyed . | . . . . . . . . . . . . . . . Combat | -11 -10 -10 -9 -9 -8 -8 -7 -7 -7 -7 -6 -6 -6 -6 -------- Run | Yrd Mat Min Mat Min Mat Sto Fac Low Low Dat Pro Fac Was Fac Hostile Shots Fired 1291 | . 63 18 131 45 108 176 345 27 7 10 29 14 . 318 Missed 528 | . 28 8 57 15 35 83 167 11 3 1 12 3 . 105 Hits 763 | . 35 10 74 30 73 93 178 16 4 9 17 11 . 213 Melee 17 | . . 2 1 . 1 1 6 . . . . . . 6 Projectile 746 | . 35 8 73 30 72 92 172 16 4 9 17 11 . 207 AOE 10 | . . . . . . . 7 . . . . . . 3 Critical Strikes 73 | . 1 . 1 . 5 8 8 . . . 2 . . 48 Actively Blocked 57 | . . . . . . . 7 . . . 2 . . 48 Part Disruptions 6 | . . . . . . . . . . 2 . . . 4 Damage Taken 12134 | . 386 170 857 245 1126 1473 3119 271 66 418 353 198 . 3452 Core 8837 | . 313 128 584 147 790 937 2138 213 51 331 279 159 . 2767 Absorbed by Shields . | . . . . . . . . . . . . . . . Redirected to Core 7658 | . 229 99 501 147 643 849 1852 197 51 331 261 140 . 2358 Core Remaining (%) 98 | 100 . 100 . 91 . 100 . . . . 100 . . . Volleys Fired 1166 | 3 52 19 142 27 129 179 319 36 10 48 42 11 . 149 Largest 4 | 2 3 3 3 3 4 4 4 4 4 4 4 4 . 4 Hottest 112 | 60 69 69 69 69 112 100 100 100 100 100 100 100 . 100 Shots Fired 4122 | 6 122 59 375 66 501 705 1274 145 40 93 168 44 . 524 Gun 4115 | 6 122 59 368 66 501 705 1274 145 40 93 168 44 . 524 Cannon . | . . . . . . . . . . . . . . . Launcher 7 | . . . 7 . . . . . . . . . . . Special . | . . . . . . . . . . . . . . . Kinetic 4083 | 3 93 59 368 66 501 705 1274 145 40 93 168 44 . 524 Thermal 32 | 3 29 . . . . . . . . . . . . . Explosive 7 | . . . 7 . . . . . . . . . . . Electromagnetic . | . . . . . . . . . . . . . . . Robot Hit Streak 69 | 3 10 7 31 17 47 69 63 30 14 41 34 32 . 33 Robot Miss Streak 6 | 1 6 6 4 4 4 3 3 1 1 1 2 1 . 4 Penetration Max . | . . . . . . . . . . . . . . . Secondary Targets 140 | . 1 1 10 5 11 27 55 6 2 . 4 . . 18 Max Gunslinging Chain 2 | . 1 1 2 1 1 2 2 1 1 . 1 . . 2 Shots Hit Robots 3041 | 4 89 41 283 41 341 480 1007 105 36 53 124 34 . 403 Core Hits 1279 | 3 48 26 144 25 151 193 389 39 14 23 54 11 . 159 Critical Kills 5 | . . . 1 . . . 1 . . . 2 . . 1 Critical Parts Destroyed 27 | . 1 . 5 2 2 4 7 2 1 . . . . 3 Critical Strikes 34 | . 1 . 6 2 3 5 8 2 1 . 2 . . 4 Destroy 34 | . 1 . 6 2 3 5 8 2 1 . 2 . . 4 Melee Attacks . | . . . . . . . . . . . . . . . Impact . | . . . . . . . . . . . . . . . Slashing . | . . . . . . . . . . . . . . . Piercing . | . . . . . . . . . . . . . . . Sneak Attacks . | . . . . . . . . . . . . . . . Combat Hostiles . | . . . . . . . . . . . . . . . Follow-up Attacks . | . . . . . . . . . . . . . . . Damage Inflicted 58956 | 45 1198 654 4593 648 5748 9007 20721 2186 724 1070 2721 656 . 8985 Guns 58941 | 45 1183 654 4593 648 5748 9007 20721 2186 724 1070 2721 656 . 8985 Cannons . | . . . . . . . . . . . . . . . Explosions . | . . . . . . . . . . . . . . . Melee . | . . . . . . . . . . . . . . . Ramming 15 | . 15 . . . . . . . . . . . . . Kinetic 58682 | 34 935 654 4593 648 5748 9007 20721 2186 724 1070 2721 656 . 8985 Thermal 259 | 11 248 . . . . . . . . . . . . . Explosive . | . . . . . . . . . . . . . . . Electromagnetic . | . . . . . . . . . . . . . . . Impact . | . . . . . . . . . . . . . . . Slashing . | . . . . . . . . . . . . . . . Piercing . | . . . . . . . . . . . . . . . Highest Corruption 5 | . 3 3 5 5 . . 3 3 3 3 3 . . 5 Average Corruption 3 | . 1 3 5 5 . . 1 3 3 3 3 . . 2 Corruption Purged . | . . . . . . . . . . . . . . . Corruption Blocked . | . . . . . . . . . . . . . . . Effects 117 | . 2 12 35 9 . . 27 10 6 2 5 . . 9 Message Errors 26 | . 1 1 11 2 . . 5 . 2 . 3 . . 1 Matter Fused 29 | . . 2 7 4 . . 7 5 1 1 1 . . 1 Heat Flow Errors 11 | . 1 1 3 . . . 2 . 2 . . . . 2 Energy Discharges 11 | . . 3 3 . . . 2 . 1 1 . . . 1 Parts Rejected 1 | . . . . . . . 1 . . . . . . . Parts Fused 1 | . . 1 . . . . . . . . . . . . Data Loss (minor) 13 | . . 2 4 2 . . 3 1 . . . . . 1 Data Loss (major) 5 | . . . 4 . . . 1 . . . . . . . Misfires 8 | . . 2 1 1 . . 2 2 . . . . . . Alerts 5 | . . . 2 . . . . 1 . . 1 . . 1 Weapon Failures 7 | . . . . . . . 4 1 . . . . . 2 Overload Shots . | . . . . . . . . . . . . . . . Overflow Damage . | . . . . . . . . . . . . . . . Projectiles . | . . . . . . . . . . . . . . . Explosions . | . . . . . . . . . . . . . . . Melee . | . . . . . . . . . . . . . . . Knockbacks . | . . . . . . . . . . . . . . . Impact . | . . . . . . . . . . . . . . . Kinetic . | . . . . . . . . . . . . . . . Secondary . | . . . . . . . . . . . . . . . Self-Inflicted Damage 7 | . 7 . . . . . . . . . . . . . Shots . | . . . . . . . . . . . . . . . Rammed 1 | . 1 . . . . . . . . . . . . . Targets Rammed 1 | . 1 . . . . . . . . . . . . . Kicked . | . . . . . . . . . . . . . . . Crushed . | . . . . . . . . . . . . . . . Highest Temperature 286 | . 169 236 221 . 103 80 172 108 170 69 87 93 136 286 Average Temperature 39 | . 84 114 34 . 41 37 31 41 59 38 41 48 85 53 Received Heat Transfer 3347 | . 189 51 402 12 414 603 738 99 36 . 78 18 . 707 Effects 1 | . . . . . . . . . . . . . . 1 Energy Bleed 1 | . . . . . . . . . . . . . . 1 Siege Activations . | . . . . . . . . . . . . . . . Martial Activations . | . . . . . . . . . . . . . . . Shielding Activations . | . . . . . . . . . . . . . . . Robots Disrupted . | . . . . . . . . . . . . . . . Combat Hostiles . | . . . . . . . . . . . . . . . Robots Corrupted . | . . . . . . . . . . . . . . . Combat Hostiles . | . . . . . . . . . . . . . . . Parts Fried . | . . . . . . . . . . . . . . . Impact Corruptions . | . . . . . . . . . . . . . . . Robots Melted . | . . . . . . . . . . . . . . . Combat Hostiles . | . . . . . . . . . . . . . . . Parts Melted 1 | . 1 . . . . . . . . . . . . . Heat Transferred 600 | 25 575 . . . . . . . . . . . . . Parts Sabotaged . | . . . . . . . . . . . . . . . Parts Stolen . | . . . . . . . . . . . . . . . Parts Stripped . | . . . . . . . . . . . . . . . Power Chain Reactions . | . . . . . . . . . . . . . . . Alert | -11 -10 -10 -9 -9 -8 -8 -7 -7 -7 -7 -6 -6 -6 -6 ------- Run | Yrd Mat Min Mat Min Mat Sto Fac Low Low Dat Pro Fac Was Fac Maximum Alert Level 5 | . 2 . 4 3 5 5 5 . . . . 1 . 4 Low Security (%) 15 | 100 61 100 7 . . . . . . . . . 100 23 Level 1 7 | . 32 . 11 . 2 5 . . . . . 100 . 9 Level 2 13 | . 5 . 34 19 14 6 . . . . . . . 18 Level 3 11 | . . . 7 80 15 13 3 . . . . . . 24 Level 4 27 | . . . 38 . 23 54 31 . . . . . . 23 Level 5 10 | . . . . . 44 . 3 . . . . . . . High Security 13 | . . . . . . 18 61 . . . . . . . Max Security . | . . . . . . . . . . . . . . . Sterilizations 4 | . . . 1 . 1 1 1 . . . . . . . Peak Influence 4331 | 5 430 160 1343 998 1736 2279 4331 . . . . 289 99 1226 Initial 1100 | . . 160 20 486 361 662 1100 . . . . 207 99 69 Average 1176 | 1 199 70 793 856 1291 1280 2493 . . . . 257 99 657 Influence Increases 14396 | 10 895 191 2137 612 1927 2557 3577 370 106 . 480 107 . 1427 Destroy 0b10 Robot/C 9900 | . 520 180 1200 400 1160 1780 2700 360 100 . 420 60 . 1020 Destroy 0b10 Robot/NC 445 | 10 . . 95 25 70 75 110 . 5 . 10 5 . 40 Destroy Leader 2176 | . 130 10 350 60 332 532 462 10 . . 50 12 . 228 Allied During Kill 41 | . . 1 . 37 2 . . . 1 . . . . . Successful Hack 154 | . 35 . 37 . 15 41 12 . . . . . . 14 Select Force Hacks 900 | . 180 . 320 . 260 80 60 . . . . . . . Disable Machine 120 | . . . 15 15 30 15 . . . . . 15 . 30 Destroy Structure 90 | . . . 45 . 28 4 8 . . . . . . 5 Partial Spotted 165 | . 15 . 15 . 30 30 . . . . . 15 . 60 Lose Combat Pursuer 405 | . 15 . 60 75 . . 225 . . . . . . 30 Influence Decreases 13250 | 10 483 550 943 931 1287 1846 1589 1842 684 2281 150 153 185 316 Entered New Map 8529 | . . 252 33 761 567 906 1243 1604 544 2281 . 123 185 30 Time Decay 3731 | 10 333 298 610 170 650 490 326 238 140 . 150 30 . 286 Lost Part 10 | . . . . . . . 10 . . . . . . . Lost Ally 80 | . . . . . 70 . 10 . . . . . . . Purge Threat 900 | . 150 . 300 . . 450 . . . . . . . . Squads Dispatched 142 | . 9 1 18 . 16 43 36 . . . 1 1 . 17 Investigation 49 | . 8 1 17 . 11 5 4 . . . 1 . . 2 Extermination 4 | . . . . . . . 2 . . . . . . 2 Reinforcement 13 | . 1 . 1 . 1 . 4 . . . . 1 . 5 Assault 37 | . . . . . . 6 25 . . . . . . 6 Garrison 39 | . . . . . 4 32 1 . . . . . . 2 Intercept . | . . . . . . . . . . . . . . . Searches Triggered . | . . . . . . . . . . . . . . . Unchained Authorized 1 | . . . . . . . . . . . . . . 1 Construction Impeded 1 | . . . . . . . . . . . . 1 . . Haulers Reinforced 1 | . . . . . . . 1 . . . . . . . Active Scanning Responses . | . . . . . . . . . . . . . . . Cargo Convoy Interrupts . | . . . . . . . . . . . . . . . Stealth | -11 -10 -10 -9 -9 -8 -8 -7 -7 -7 -7 -6 -6 -6 -6 --------- Run | Yrd Mat Min Mat Min Mat Sto Fac Low Low Dat Pro Fac Was Fac Distress Signals 16 | . . . 6 . 2 3 3 . . . . . . 2 Communications Jammed . | . . . . . . . . . . . . . . . Distress Signals . | . . . . . . . . . . . . . . . Times Spotted 673 | . 38 11 79 24 69 107 199 22 5 4 17 3 1 94 Peak Tracking Total 16 | . 5 2 6 7 6 14 14 9 5 3 4 2 1 16 Tactical Retreats 17 | . 1 . 2 2 . . 9 . . . . . . 3 Traps | -11 -10 -10 -9 -9 -8 -8 -7 -7 -7 -7 -6 -6 -6 -6 ------- Run | Yrd Mat Min Mat Min Mat Sto Fac Low Low Dat Pro Fac Was Fac Traps Triggered 16 | . 2 . 1 . . 4 7 . . . . 1 . 1 Indirectly . | . . . . . . . . . . . . . . . Trap Hack Attempts . | . . . . . . . . . . . . . . . Triggered . | . . . . . . . . . . . . . . . Disarmed . | . . . . . . . . . . . . . . . Reprogrammed . | . . . . . . . . . . . . . . . Reused . | . . . . . . . . . . . . . . . Traps Extracted . | . . . . . . . . . . . . . . . Installed . | . . . . . . . . . . . . . . . Triggered . | . . . . . . . . . . . . . . . Most Traps Carried 1 | . . . . 1 1 1 1 1 1 1 1 1 1 1 Machines | -11 -10 -10 -9 -9 -8 -8 -7 -7 -7 -7 -6 -6 -6 -6 ---------- Run | Yrd Mat Min Mat Min Mat Sto Fac Low Low Dat Pro Fac Was Fac Machines Disabled 14 | . . . 4 1 2 1 . 2 . . 1 1 . 2 Max in Single Turn 1 | . . . 1 1 1 1 . 1 . . 1 1 . 1 Garrison Access 3 | . . . . . 1 . . . . . . . . 2 Machines Repaired . | . . . . . . . . . . . . . . . Machines Dismantled . | . . . . . . . . . . . . . . . Machines Sabotaged 12 | . 3 . 4 . 4 1 . . . . . . . . Overloaded Fab Kills . | . . . . . . . . . . . . . . . Hacking | -11 -10 -10 -9 -9 -8 -8 -7 -7 -7 -7 -6 -6 -6 -6 --------- Run | Yrd Mat Min Mat Min Mat Sto Fac Low Low Dat Pro Fac Was Fac Machines Accessed 71 | . 10 1 17 . 12 14 8 1 . 4 1 . . 3 Terminals 46 | . 7 . 11 . 9 11 5 1 . . 1 . . 1 Fabricators 1 | . . . . . . . . . . . . . . 1 Repair Stations 4 | . 1 . 2 . . 1 . . . . . . . . Recycling Units 10 | . 2 . 2 . 2 2 2 . . . . . . . Scanalyzers 3 | . . . 2 . . . . . . . . . . 1 Garrison Access 2 | . . . . . 1 . 1 . . . . . . . Total Hacks 223 | . 35 1 59 . 29 33 20 4 . 30 4 . . 8 Successful 140 | . 19 1 32 . 15 23 6 4 . 30 4 . . 6 Failed 82 | . 16 . 27 . 14 9 14 . . . . . . 2 Catastrophic 8 | . 2 . 1 . 1 1 2 . . . . . . 1 Database Lockouts 1 | . . . . . . 1 . . . . . . . . Manual 144 | . 21 . 49 . 24 22 17 10 . . . . . 1 Terminals 151 | . 27 . 46 . 25 29 13 4 . . 4 . . 3 Fabricators 2 | . . . . . . . . . . . . . . 2 Repair Stations 6 | . 1 . 4 . . 1 . . . . . . . . Recycling Units 23 | . 7 . 7 . 2 3 4 . . . . . . . Scanalyzers 5 | . . . 2 . . . . . . . . . . 3 Garrison Access 5 | . . . . . 2 . 3 . . . . . . . Terminal Hacks 68 | . 5 1 7 . 2 14 . 4 . 30 4 . . 1 Record 19 | . . . . . . . . 4 . 11 4 . . . Part Schematic 14 | . . . . . . 2 . . . 12 . . . . Robot Schematic 5 | . . . . . . . . . . 4 . . . 1 Robot Analysis 4 | . . . 2 . 2 . . . . . . . . . Prototype ID Bank 9 | . 2 . 1 . . 3 . . . 3 . . . . Open Door 5 | . . 1 . . . 4 . . . . . . . . Branch Access Points 1 | . . . 1 . . . . . . . . . . . Machine Index 1 | . . . . . . 1 . . . . . . . . Terminal Index 1 | . 1 . . . . . . . . . . . . . Unreport Threat 6 | . 1 . 2 . . 3 . . . . . . . . Locate Traps 1 | . . . . . . 1 . . . . . . . . Hauler Manifests 2 | . 1 . 1 . . . . . . . . . . . Fabricator Hacks 2 | . . . . . . . . . . . . . . 2 Load Schematic 1 | . . . . . . . . . . . . . . 1 Build 1 | . . . . . . . . . . . . . . 1 Repair Station Hacks . | . . . . . . . . . . . . . . . Recycling Unit Hacks . | . . . . . . . . . . . . . . . Scanalyzer 2 | . . . . . . . . . . . . . . 2 Insert Component 1 | . . . . . . . . . . . . . . 1 Analyze 1 | . . . . . . . . . . . . . . 1 Garrison Access Hacks . | . . . . . . . . . . . . . . . Unauthorized Hacks 67 | . 13 . 25 . 13 9 6 . . . . . . 1 Terminals 44 | . 6 . 15 . 11 7 4 . . . . . . 1 Assimilate 4 | . . . 1 . 2 . 1 . . . . . . . Botnet 17 | . 2 . 6 . 2 4 2 . . . . . . 1 Operators 2 | . . . . . 1 . 1 . . . . . . . Sabotage 21 | . 4 . 8 . 6 3 . . . . . . . . Fabricators . | . . . . . . . . . . . . . . . Repair Stations 4 | . 1 . 2 . . 1 . . . . . . . . Patch 4 | . 1 . 2 . . 1 . . . . . . . . Recycling Units 17 | . 6 . 6 . 2 1 2 . . . . . . . Monitor 1 | . . . 1 . . . . . . . . . . . Reject 3 | . 2 . 1 . . . . . . . . . . . Recyclers 2 | . 1 . 1 . . . . . . . . . . . Mask 3 | . 2 . 1 . . . . . . . . . . . Tunnel 8 | . 1 . 2 . 2 1 2 . . . . . . . Scanalyzers 2 | . . . 2 . . . . . . . . . . . Extract 2 | . . . 2 . . . . . . . . . . . Garrison Access . | . . . . . . . . . . . . . . . Data Cores Recovered 1 | . . . 1 . . . . . . . . . . . Used . | . . . . . . . . . . . . . . . Hacking Detections 45 | . 8 . 10 . 7 8 7 1 . . 1 . . 3 Full Trace Events 16 | . 4 . 3 . 3 . 2 1 . . 1 . . 2 Feedback Events 1 | . 1 . . . . . . . . . . . . . Corruption 1 | . 1 . . . . . . . . . . . . . Feedback Blocked . | . . . . . . . . . . . . . . . Robot Schematics Acquired 5 | . . . . . . . . . . 4 . . . 1 Robots Built . | . . . . . . . . . . . . . . . Authchips . | . . . . . . . . . . . . . . . Time . | . . . . . . . . . . . . . . . Total Robot Build Rating . | . . . . . . . . . . . . . . . Part Schematics Acquired 17 | . . . 2 . . 2 . . . 12 . . . 1 Parts Built 2 | . . . . . . . . . . . . . . 2 Authchips . | . . . . . . . . . . . . . . . Time 117 | . . . . . . . . . . . . . . 117 Total Part Build Rating 14 | . . . . . . . . . . . . . . 14 Part Studies Acquired . | . . . . . . . . . . . . . . . Parts Repaired . | . . . . . . . . . . . . . . . Time . | . . . . . . . . . . . . . . . Parts Recycled . | . . . . . . . . . . . . . . . Recycled Matter . | . . . . . . . . . . . . . . . Retrieved Matter . | . . . . . . . . . . . . . . . Retrieved Components . | . . . . . . . . . . . . . . . Parts Scanalyzed 1 | . . . . . . . . . . . . . . 1 Part Schematics Acquired 1 | . . . . . . . . . . . . . . 1 Parts Damaged . | . . . . . . . . . . . . . . . Bothacking | -11 -10 -10 -9 -9 -8 -8 -7 -7 -7 -7 -6 -6 -6 -6 ------------ Run | Yrd Mat Min Mat Min Mat Sto Fac Low Low Dat Pro Fac Was Fac Used RIF Installer . | . . . . . . . . . . . . . . . Robots Hacked . | . . . . . . . . . . . . . . . Non-combat . | . . . . . . . . . . . . . . . Combat . | . . . . . . . . . . . . . . . Robot Hacks Applied . | . . . . . . . . . . . . . . . Relay Couplers Released 1 | . . . . . 1 . . . . . . . . . Machine Destruction 1 | . . . . . 1 . . . . . . . . . Fabnet Peak Effective % . | . . . . . . . . . . . . . . . Robots Rewired 2 | . . . . . . . . 2 . . . . . . Allies Hacked . | . . . . . . . . . . . . . . . Hacks Repelled . | . . . . . . . . . . . . . . . Allies | -11 -10 -10 -9 -9 -8 -8 -7 -7 -7 -7 -6 -6 -6 -6 -------- Run | Yrd Mat Min Mat Min Mat Sto Fac Low Low Dat Pro Fac Was Fac Total Allies 10 | . . 1 1 3 2 . 1 2 . . . . . . Largest Group 4 | . . 1 1 3 4 . 1 2 2 2 . . . . Highest-Rated Group 84 | . . 31 31 74 84 . 26 45 45 45 . . . . Highest-Rated Ally 31 | . . 31 31 31 31 . 26 25 25 25 . . . . Total Orders 7 | . . . 4 . 2 . 1 . . . . . . . STAY 5 | . . . 3 . 1 . 1 . . . . . . . FOLLOW 2 | . . . 1 . 1 . . . . . . . . . Ally Attacks 13 | . . . 1 3 6 . . . . 3 . . . . Total Damage 270 | . . . 21 40 82 . . . . 127 . . . . Kills 4 | . . . 1 2 1 . . . . . . . . . Allies Corrupted . | . . . . . . . . . . . . . . . Allies Melted . | . . . . . . . . . . . . . . . Intel | -11 -10 -10 -9 -9 -8 -8 -7 -7 -7 -7 -6 -6 -6 -6 ------- Run | Yrd Mat Min Mat Min Mat Sto Fac Low Low Dat Pro Fac Was Fac Active Infowar (turns) 10796 | 15 840 707 1999 356 1308 1594 1914 502 289 179 378 72 12 631 Optics 48 | . . . . . 48 . . . . . . . . . Terrain 837 | 12 825 . . . . . . . . . . . . . Seismic 10796 | 15 840 707 1999 356 1308 1594 1914 502 289 179 378 72 12 631 Robot Analysis Total 154 | . . . 2 . 2 . . . . 150 . . . . Derelict Logs Recovered 10 | . . 2 . 1 . . . 2 3 . 2 . . . Drone Launches . | . . . . . . . . . . . . . . . Drone Recoveries . | . . . . . . . . . . . . . . . Exploration | -11 -10 -10 -9 -9 -8 -8 -7 -7 -7 -7 -6 -6 -6 -6 ------------- Run | Yrd Mat Min Mat Min Mat Sto Fac Low Low Dat Pro Fac Was Fac Turns Passed 11928 | 68 840 707 1999 356 2382 1596 1917 502 289 179 378 72 12 631 Spaces Moved 18421 | 53 1307 760 2808 892 2252 1279 3841 949 839 262 1256 209 75 1639 Core 4 | 3 . . . . 1 . . . . . . . . . Treads . | . . . . . . . . . . . . . . . Legs . | . . . . . . . . . . . . . . . Wheels 81 | 50 31 . . . . . . . . . . . . . Hover . | . . . . . . . . . . . . . . . Flight 18336 | . 1276 760 2808 892 2251 1279 3841 949 839 262 1256 209 75 1639 Fastest Speed 6 | 50 34 34 23 23 23 24 14 23 23 23 20 20 11 6 Average Speed 24 | 90 37 34 26 23 23 24 23 23 23 23 20 20 13 18 Slowest Speed 150 | 100 125 34 34 23 150 24 24 23 23 23 23 20 20 24 Overloaded Moves 146 | . . . . . . . 17 . . . . . 60 69 Propulsion Burnouts . | . . . . . . . . . . . . . . . Robots Hopped 220 | . 17 12 38 14 25 22 40 . . 1 1 1 . 49 Potential Cave-ins . | . . . . . . . . . . . . . . . Cave-ins Triggered . | . . . . . . . . . . . . . . . Exploration Rate (%) 77 | 3 99 95 98 97 92 97 82 98 97 80 99 9 77 34 Regions Visited 14 Branch Regions 7 Pre-discovered Areas 31 | . 1 . 2 . 2 1 2 . 1 21 1 . . . Known Exits Taken 9 | . . . 1 1 1 1 1 1 1 1 1 . . . Unknown Exits Taken 3 | 1 1 1 . . . . . . . . . . . . Scrap Searched 17 | . . 1 . 3 . . . 4 5 . 4 . . . Spaces Dug . | . . . . . . . . . . . . . . . Terrain Destroyed 59 | . . . 35 . 23 . . . . . . . . 1 Melee . | . . . . . . . . . . . . . . . Projectile 1 | . . . . . . . . . . . . . . 1 AOE 58 | . . . 35 . 23 . . . . . . . . . Terrain Rammed . | . . . . . . . . . . . . . . . Walls Destroyed . | . . . . . . . . . . . . . . . Machines Disabled . | . . . . . . . . . . . . . . . Actions | -11 -10 -10 -9 -9 -8 -8 -7 -7 -7 -7 -6 -6 -6 -6 --------- Run | Yrd Mat Min Mat Min Mat Sto Fac Low Low Dat Pro Fac Was Fac Total 24329 | 63 1527 1152 3735 977 3905 2381 4540 1220 929 370 1360 235 76 1859 Wait 4215 | . 150 371 752 61 1437 842 210 205 79 37 41 6 . 24 Move 17994 | 52 1272 735 2732 863 2202 1236 3771 948 838 259 1253 207 74 1552 Hop 194 | . 17 12 37 14 24 20 29 . . 1 1 1 . 38 Pick Up 21 | 1 1 . 2 1 1 2 5 1 . 1 1 . 1 4 Fast Attach 27 | 7 3 1 5 . 4 1 5 . . . 1 . . . Attach 3 | . . . 1 . . 1 1 . . . . . . . Detach 1 | . . . . . 1 . . . . . . . . . Swap 69 | . 7 2 6 . 19 10 12 3 2 . 1 1 . 6 Drop 46 | . 3 1 7 1 9 5 7 1 . 1 . 1 1 9 Fire 1166 | 3 52 19 142 27 129 179 319 36 10 48 42 11 . 149 Melee . | . . . . . . . . . . . . . . . Ram 1 | . 1 . . . . . . . . . . . . . Kick . | . . . . . . . . . . . . . . . Crush . | . . . . . . . . . . . . . . . Escape Stasis 61 | . . . . . . . 43 . . . . . . 18 Rewire 10 | . . . . . . . . 10 . . . . . . Trap . | . . . . . . . . . . . . . . . Miscellaneous 521 | . 21 11 51 10 79 85 138 16 . 23 20 8 . 59 Route ------- -11/Scrapyard -10/Materials (discovered 5 exits: *Mat x3 / *Min / *Sub) -10/Mines (discovered 3 exits: *Mat x2 / Sub) -9/Materials (discovered 4 exits: *Mat x3 / *Min) -9/Mines (discovered 2 exits: *Mat x2) -8/Materials (discovered 4 exits: *Fac x3 / *Sto) -8/Storage (discovered 2 exits: *Fac / [*Rec]) -7/Factory (discovered 5 exits: *Fac x4 / *Low) -7/Lower Caves -7/Lower Caves (discovered 2 exits: *Fac / *Dat) -7/Data Miner -6/Proximity Caves -6/Factory -6/Waste -6/Factory History --------- Turn | Location | Event 1 | -11/Scrapyard | Upgraded with Propulsion slot (x1) 1 | -11/Scrapyard | Upgraded with Utility slot (x1) 1 | -11/Scrapyard | Upgraded with Weapon slot (x1) 8 | -11/Scrapyard | Discovered new exit (range 16) 69 | -11/Scrapyard | Entered Materials 244 | -10/Materials | Discovered new exit (range 11) 254 | -10/Materials | Discovered new exit (range 7) 315 | -10/Materials | Build established: Mutant 335 | -10/Materials | Discovered new exit (range 15) 371 | -10/Materials | Discovered new exit (range 6) 531 | -10/Materials | Reached level 2 537 | -10/Materials | Upgraded with Weapon slot (x1) 630 | -10/Materials | Reached level 3 652 | -10/Materials | Upgraded with Propulsion slot (x1) 652 | -10/Materials | Upgraded with Utility slot (x1) 745 | -10/Materials | Discovered new exit (range 7) 854 | -10/Materials | Build established: Gunner 909 | -10/Materials | Entered Mines 911 | -10/Mines | Reached level 4 921 | -10/Mines | Met a Derelict shopkeep closing up shop 922 | -10/Mines | Upgraded with Utility slot (x1) 948 | -10/Mines | Learned location of 1 exit from Materials 953 | -10/Mines | Excavation squad dispatched 953 | -10/Mines | A large section of the Mines collapsed 1203 | -10/Mines | Excavation squad dispatched 1400 | -10/Mines | Received a Rocket Launcher from a helpful Derelict 1414 | -10/Mines | Received a Mining Laser from a helpful Derelict 1416 | -10/Mines | Discovered new exit (range 10) 1428 | -10/Mines | Found a damaged Exp. Sensor Array with a note attached 1457 | -10/Mines | Discovered new exit (range 15) 1509 | -10/Mines | Identified exit to Subcaves 1551 | -10/Mines | Joined a pair of Derelicts in attacking an 0b10 outpost 1616 | -10/Mines | Entered Materials 1616 | -9/Materials | Accompanied by 1 ally 1617 | -9/Materials | Identified exit to Materials 1618 | -9/Materials | Reached level 5 1630 | -9/Materials | Upgraded with Utility slot (x1) 1638 | -9/Materials | Upgraded with Power slot (x1) 1705 | -9/Materials | Reached level 6 1744 | -9/Materials | Upgraded with Propulsion slot (x1) 1829 | -9/Materials | Discovered exit to Materials (range 16) 1873 | -9/Materials | Reached level 7 2036 | -9/Materials | Discovered exit to Materials (range 16) 2049 | -9/Materials | Build established: Scavenger-Sprinter 2078 | -9/Materials | Identified exit to Mines 2086 | -9/Materials | Reached level 8 2177 | -9/Materials | Destroyed 9 combat bots 2269 | -9/Materials | Upgraded with Propulsion slot (x1) 2269 | -9/Materials | Upgraded with Weapon slot (x1) 2476 | -9/Materials | Reached level 9 2514 | -9/Materials | Build established: Sprinter 2841 | -9/Materials | Reached level 10 2857 | -9/Materials | Sterilization system engaged 2857 | -9/Materials | Non-combat units ordered to evacuate 2896 | -9/Materials | Destroyed 10 combat bots 2957 | -9/Materials | Combat units ordered to evacuate 3157 | -9/Materials | Ambient heat levels rising (+10) 3307 | -9/Materials | Ambient heat levels rising (+10) 3457 | -9/Materials | Ambient heat levels rising (+10) 3607 | -9/Materials | Ambient heat levels rising (+10) 3615 | -9/Materials | Entered Mines 3643 | -9/Mines | Found a hidden stash of uninstalled traps 3693 | -9/Mines | A weapon hastily lodged in a ceiling crevice suddenly fell to the ground 3694 | -9/Mines | Learned location of 1 exit from Lower Caves 3754 | -9/Mines | Escorted by a lone wolf Derelict 3759 | -9/Mines | Discovered exit to Materials (range 13) 3767 | -9/Mines | Destroyed 8 combat bots 3778 | -9/Mines | Discovered exit to Materials (range 11) 3971 | -9/Mines | Entered Materials 3971 | -8/Materials | Accompanied by 3 allies 3973 | -8/Materials | Reached level 11 3976 | -8/Materials | Led the pair of lost Derelicts to an unsafe place 4008 | -8/Materials | Discovered new exit (range 3) 4013 | -8/Materials | Discovered new exit (range 15) 4022 | -8/Materials | Reached level 12 4046 | -8/Materials | Upgraded with Utility slot (x1) 4168 | -8/Materials | Destroyed 11 combat bots 4208 | -8/Materials | Discovered new exit (range 8) 4331 | -8/Materials | Discovered new exit (range 15) 4445 | -8/Materials | Garrison activated, responded to threat 4628 | -8/Materials | Reached level 13 4653 | -8/Materials | Identified exit to Factory 4724 | -8/Materials | Identified exit to Storage 4735 | -8/Materials | Garrison activated, responded to threat 4797 | -8/Materials | Destroyed 7 combat bots 4983 | -8/Materials | Reached level 14 4997 | -8/Materials | Sterilization system engaged 4997 | -8/Materials | Non-combat units ordered to evacuate 4998 | -8/Materials | Upgraded with Utility slot (x1) 5033 | -8/Materials | Destroyed 9 combat bots 5097 | -8/Materials | Combat units ordered to evacuate 5297 | -8/Materials | Ambient heat levels rising (+10) 5447 | -8/Materials | Ambient heat levels rising (+10) 5582 | -8/Materials | Build established: Gunner 5597 | -8/Materials | Ambient heat levels rising (+10) 5747 | -8/Materials | Ambient heat levels rising (+10) 5897 | -8/Materials | Ambient heat levels rising (+10) 6047 | -8/Materials | Ambient heat levels rising (+10) 6197 | -8/Materials | Ambient heat levels rising (+10) 6347 | -8/Materials | Ambient heat levels rising (+10) 6353 | -8/Materials | Entered Storage 6382 | -8/Storage | Used back door to open Recycling access 6382 | -8/Storage | Discovered new exit (range 5) 6449 | -8/Storage | Garrison activated, responded to threat 6524 | -8/Storage | Central database locked down 6537 | -8/Storage | Discovered exit to Factory (range 15) 6593 | -8/Storage | Destroyed 22 combat bots 6649 | -8/Storage | Build established: Sprinter 6665 | -8/Storage | Reached level 15 6753 | -8/Storage | First assault squad dispatched 7651 | -8/Storage | High security lockdown imminent 7689 | -8/Storage | Destroyed 7 combat bots 7731 | -8/Storage | High security lockdown engaged 7788 | -8/Storage | Garrison activated, responded to threat 7812 | -8/Storage | Sterilization system engaged 7812 | -8/Storage | Non-combat units ordered to evacuate 7816 | -8/Storage | Destroyed 11 combat bots 7904 | -8/Storage | Destroyed 13 combat bots 7912 | -8/Storage | Combat units ordered to evacuate 7949 | -8/Storage | Entered Factory 7951 | -7/Factory | Reached level 16 7972 | -7/Factory | Discovered new exit (range 15) 8095 | -7/Factory | Destroyed 8 combat bots 8176 | -7/Factory | Allied Derelicts emerged from ambush trap array 8299 | -7/Factory | Discovered new exit (range 7) 8349 | -7/Factory | First assault squad dispatched 8417 | -7/Factory | Garrison activated, responded to threat 8423 | -7/Factory | Reached level 17 8480 | -7/Factory | Destroyed 7 combat bots 8676 | -7/Factory | Discovered new exit (range 11) 8681 | -7/Factory | Core integrity fell below 50% 8688 | -7/Factory | High security lockdown imminent 8768 | -7/Factory | High security lockdown engaged 8813 | -7/Factory | Discovered new exit (range 12) 8939 | -7/Factory | Destroyed 7 combat bots 9018 | -7/Factory | Destroyed 8 combat bots 9020 | -7/Factory | Build established: Scavenger-Sprinter 9070 | -7/Factory | Reached level 18 9148 | -7/Factory | Destroyed 18 combat bots 9231 | -7/Factory | Destroyed 10 combat bots 9281 | -7/Factory | Upgraded with Utility slot (x1) 9444 | -7/Factory | Sterilization system engaged 9444 | -7/Factory | Non-combat units ordered to evacuate 9477 | -7/Factory | Destroyed 44 combat bots 9544 | -7/Factory | Combat units ordered to evacuate 9595 | -7/Factory | Identified exit to Factory 9596 | -7/Factory | Destroyed 12 combat bots 9617 | -7/Factory | Identified exit to Lower Caves 9663 | -7/Factory | Discovered exit to Factory (range 9) 9744 | -7/Factory | Ambient heat levels rising (+10) 9866 | -7/Factory | Entered Lower Caves 9867 | -7/Lower Caves | Identified exit to Lower Caves 9868 | -7/Lower Caves | Reached level 19 9870 | -7/Lower Caves | Learned location of 1 exit from Lower Caves 9900 | -7/Lower Caves | Attracted the attention of an 0b10 base 9951 | -7/Lower Caves | Learned Extension stockpile data 9951 | -7/Lower Caves | Learned location of 2 exits from Upper Caves 9963 | -7/Lower Caves | Destroyed 14 combat bots 10187 | -7/Lower Caves | Attacked by a faux Warlord 10368 | -7/Lower Caves | Entered another Lower Caves area 10368 | -7/Lower Caves | Accompanied by 2 allies 10369 | -7/Lower Caves | Identified exit to Data Miner 10375 | -7/Lower Caves | Discovered exit to Factory (range 13) 10448 | -7/Lower Caves | Encountered a Warlord checkpoint 10482 | -7/Lower Caves | Learned Factory security intel 10485 | -7/Lower Caves | Learned Factory security intel 10657 | -7/Lower Caves | Entered Data Miner 10657 | -7/Data Miner | Accompanied by 2 allies 10657 | -7/Data Miner | Discovered new exit (range 7) 10662 | -7/Data Miner | Met Data Miner 10669 | -7/Data Miner | Received God Mode back door access code from Data Miner 10673 | -7/Data Miner | Learned location of Section 7 (-2) 10673 | -7/Data Miner | Acquired the access code to Warlord's prototype stash 10679 | -7/Data Miner | Interfaced with the Data Conduit 10836 | -7/Data Miner | Identified exit to Proximity Caves 10836 | -7/Data Miner | Entered Proximity Caves 10872 | -6/Proximity Caves | Learned Factory machine intel 10876 | -6/Proximity Caves | Upgraded with Propulsion slot (x1) 10959 | -6/Proximity Caves | Discovered exit to Factory (range 9) 10975 | -6/Proximity Caves | Attracted the attention of an 0b10 base 11013 | -6/Proximity Caves | Destroyed 7 combat bots 11084 | -6/Proximity Caves | Reached level 20 11163 | -6/Proximity Caves | Spotted B-75 Beast 11168 | -6/Proximity Caves | Destroyed B-75 Beast 11214 | -6/Proximity Caves | Entered Factory 11216 | -6/Factory | Loaded intel: 243 machine locations 11286 | -6/Factory | Sucked down chute 11286 | -6/Factory | Entered Waste 11287 | -6/Waste | Spotted C-40 Crusher 11290 | -6/Waste | Spotted C-40 Crusher 11297 | -6/Waste | Spotted C-40 Crusher 11297 | -6/Waste | Discovered new exit (range 10) 11298 | -6/Waste | Entered Factory 11300 | -6/Factory | Loaded intel: 259 machine locations 11358 | -6/Factory | Spotted B-75 Beast 11366 | -6/Factory | Assembled infested ambush trap array 11436 | -6/Factory | Unchained authorized (QV-33N) 11475 | -6/Factory | Destroyed B-75 Beast 11609 | -6/Factory | Destroyed 22 combat bots 11621 | -6/Factory | Garrison activated, responded to threat 11631 | -6/Factory | Reached level 21 11636 | -6/Factory | Fabricated Adv. Surge Thruster? 11648 | -6/Factory | First assault squad dispatched 11651 | -6/Factory | Core integrity fell below 50% 11653 | -6/Factory | Core integrity fell below 20% 11808 | -6/Factory | Destroyed 15 combat bots 11916 | -6/Factory | Destroyed 8 combat bots 11929 | -6/Factory | Destroyed by Y-54 Guardian with Gatling Laser Last Messages --------------- 11888_ Acquired 12 matter. 11890_ G-50 Soldier destroyed. 11890_ U-05 Engineer builds a Door. 11891_ Acquired 12 matter. 11891_ K-01 Serf collects debris. 11895_ G-50 Soldier destroyed. 11896_ Acquired 24 matter. 11897_ K-01 Serf collects debris. 11904_ K-01 Serf cleans the Repair Station. 11906_ K-01 Serf cleans the Fabricator. 11906_ K-01 Serf cleans the Matter Pump. 11906_ Dropped Surge Thruster. 11911_ System corrupted: Matter fused (-8). 11913_ QV-33N sends out distress signal. QV-33N: "I recently came up with a new concept for a Subquantum Drone, what do you think?" 11918_ System corrupted: Enh. Autogun jammed. 11920_ Upgraded: Core Integrity (+150) 11922_ Upgraded: Core Integrity (+50) Kinetic Drone disintegrates. Map ----- +----------------------------------------------------+ | ??????????????????????????????????T?????"""?#! [[[ | | ????????????????????????????????????????"""?# [[ | | ????????????????????????????????????????"""?# [[ | | ????????????????????????????????????????????# | | ??????????????????????????????????????????#######? | | ?"""??????????????????????????????????????# #? | | ?"""??????????????????????????????????????# ## | | ?"""??????????????????????????????????????# | | ??""??????????????????????????????????????# !## | | ??""??????????????????????????????????????# #? | | ??????????????????????????????????????????## ##? | | ???????????????????????????????????????????#%!*### | | ????????????????????????????????######]#####%*%+ | | ?????????????????????????# =]]]%]]]* % # | | ????????????????????????????????############ # | | #+####?????????????????????????????????????# #? | | ????????????????????????????????????# #?" | | ##/#######?????????????????????????????# #?" | | # #?????????????????????????????# #?" | | # ==! #????????????"??############### #?? | | # ==! #???????????????# !! # #?? | | # == ##??????????????# !! # #?? | | # #?????######+### [ + #?? | | # """ ######## # # #?? | | # """ /Yn nnYnn! """ # !# #?? | | # """ ########n! @T" # !/= # #?? | | + #??????#! 8""" #########+##### #?? | | ################# ## ??# #???# #?? | | #????# """" # """ ## #%##### #?? | | #????# """" ## """ ## +!==! #?? | | #????#! """" ## """ ## #%######/##?? | | #????# """" ## ## ??#%#????? ??? | | #????# #########?## ????#!#????? ??? | | #????# #??????????#??????#%#????? ??? | | #????# #?????????????????#=#????? ??? | | #????# = #?????????????????# #????? ??? | | ##########+####################### ########### | | | | ] ######### | | """ """ #???????# | | """ """ #???????# | | %"" """ #??????## | | #######+##### ######## ###+####### | | ????????????# ""= """ # #T #?????????? | | ????"""?????# "F= """ # ## #?"""?"""?" | | ????"R??????# "" """ # ## #?"""?"""?" | | ????"""?????# "" + """" ## #?"""?"""?" | | ????????????# ! # """" ## #?????????? | | ?????????"""# # """" ## #?"""?"""?" | | ?????????"""# ######## """" ## #?"""?"""?" | +----------------------------------------------------+ Best States ------------- Heat Dissipation 99 Energy Generation 38 Energy Capacity 330 Matter Stores 350 Matter Capacity 350 Sight Range 18 Terrain Scan Range 16 Terrain Scan Density 135 Additional Mass Support 12 Armor Coverage 600 Weapon Cycling 30 Evasion (%) 67 Targeting Accuracy 6 Armor Integrity Analysis 30 Kinecelleration 30 Salvage Targeting 2 Offensive Hacking 15 Defensive Hacking 5 Item Schematics ----------------- Terrain Scan Processor | -9/Materials | Extracted Hrd. Light Armor Plating | -9/Materials | Extracted Proton Missile Launcher | -8/Storage | Hacked Gatling Laser | -8/Storage | Hacked Combat Drone Bay | -7/Data Miner | Free Gravity Neutralizer | -7/Data Miner | Free Lgt. Regenerative Plating | -7/Data Miner | Free Thunder Leg | -7/Data Miner | Free Cld. Cesium-ion Thruster | -7/Data Miner | Free Shock Maul | -7/Data Miner | Free Remote Force Field | -7/Data Miner | Free Wave Gun | -7/Data Miner | Free Imp. Recalibrator | -7/Data Miner | Free Imp. Target Analyzer | -7/Data Miner | Free Matter Neutralizer | -7/Data Miner | Free Imp. Component Analysis Suite | -7/Data Miner | Free Adv. Surge Thruster | -6/Factory | Scanalyzed Robot Schematics ------------------ B-48 Gladiator | -7/Data Miner | Free W-25 Informer | -7/Data Miner | Free M-22 Extractor | -7/Data Miner | Free S-27 Virus | -7/Data Miner | Free A-15 Conveyor | -6/Factory | Hacked Fabricated ------------ Adv. Surge Thruster | x2 | -6/Factory Repaired ---------- Nothing Studied --------- None Alien Tech Used ----------------- None Achievements -------------- None Challenges ------------ None RPGLIKE | -11 -10 -10 -9 -9 -8 -8 -7 -7 -7 -7 -6 -6 -6 -6 --------- Run | Yrd Mat Min Mat Min Mat Sto Fac Low Low Dat Pro Fac Was Fac Levels Raised 20 | . 2 1 6 . 4 1 3 1 . . 1 . . 1 XP Earned 33440 | 3000 4218 1450 8169 960 5000 2554 4576 284 112 248 1065 456 46 1302 XP Spent 32975 | 2960 3000 1100 9290 . 6000 1620 3650 . . . 2250 . . 3105 Upgrades 71 | 10 4 1 17 . 6 4 4 . . . 2 . . 23 Power Slot 1 | . . . 1 . . . . . . . . . . . Propulsion Slot 5 | 1 1 . 2 . . . . . . . 1 . . . Utility Slot 7 | 1 1 1 1 . 2 . 1 . . . . . . . Weapon Slot 3 | 1 1 . 1 . . . . . . . . . . . Core Integrity 23 | . . . . . . . . . . . . . . 23 Heat Dissipation 12 | 3 . . 7 . . 2 . . . . . . . . Energy Generation 2 | . . . 1 . . . . . . . 1 . . . Matter Storage 1 | . . . . . . 1 . . . . . . . . Mass Support 3 | 1 1 . . . 1 . . . . . . . . . Inventory Capacity 3 | 1 . . . . 1 . 1 . . . . . . . Ranged Accuracy 6 | 2 . . 3 . . 1 . . . . . . . . Hack Attack % 2 | . . . 1 . . . 1 . . . . . . . Hack Defense % 1 | . . . . . . . 1 . . . . . . . KI Damage % 2 | . . . . . 2 . . . . . . . . . Protomatter Created 8174 | . 308 96 823 99 968 1754 2341 329 50 342 380 114 . 570 Integrity Restored 9850 | . 390 201 867 132 1396 1439 2877 271 . 484 359 175 . 1259 Core 7086 | . 313 128 584 94 843 937 2138 213 . 382 279 159 . 1016 Parts 2764 | . 77 73 283 38 553 502 739 58 . 102 80 16 . 243 Protomatter Decayed 3175 | . 146 173 390 105 544 343 806 254 . 60 130 55 . 169 Game ------ Seed IonicGlidesysScreen Manual? 0 Play Time 02:19:38 Cumulative 534.2 hours Start 2026.01.06 @ 17:33:13 End 2026.01.06 @ 20:38:08 Sessions 1 Manual Loads 0 Difficulty Rogue Special Mode Winter2019/RPGLIKE Game No. 198 Rogue 44 Adventurer 154 Explorer 0 Win Type - Total 20 Types 4/4/3/3/2/1/0/1/1/1 Lore% 95 Gallery% 88 Achievement% 61 Wizard Run 0 Options --------- Layout 0 ASCII 0 Keyboard 0 Movement Numpad Keybinds 0 Fullscreen 2 Font 18/SmallcapsGlow Map View 76x50 Zoom Use 0% Tactical HUD 1 Map Filters NONE Filters NONE Steam 1 RUN: 869d5422-b9aa-4625-911d-a0be3e73e48e